bitfinex/quotes_BTCUSD_20230120
["timestamp","ask_amount","ask_price","bid_price","bid_amount"]
[1674237374797,0.47720169,21373.0,21372.0,0.00575348]
[1674237375112,2.62575131,21373.0,21372.0,0.00575348]
[1674237375380,2.95652031,21373.0,21372.0,0.00575348]
[1674237375646,3.34083554,21373.0,21372.0,0.00575348]
[1674237375910,0.7724,21372.0,21370.0,0.00630997]
[1674237376176,2.68137069,21371.0,21370.0,0.00630997]
[1674237376470,3.13383969,21371.0,21370.0,0.00630997]
[1674237377018,3.56354465,21371.0,21370.0,0.00630997]
[1674237377274,3.71354465,21371.0,21370.0,0.00630997]
[1674237377540,3.28383969,21371.0,21370.0,0.00630997]
[1674237377850,3.90244188,21371.0,21370.0,0.00630997]
[1674237378636,3.41983969,21371.0,21370.0,0.00630997]
[1674237379200,3.84954465,21371.0,21370.0,0.00630997]
[1674237379761,3.41983969,21371.0,21370.0,0.00630997]
[1674237380021,3.44284003,21371.0,21370.0,0.00630997]
[1674237380286,2.52834003,21371.0,21370.0,0.60630997]
[1674237380600,2.40664003,21371.0,21370.0,0.60630997]
[1674237381935,2.86113358,21371.0,21370.0,0.00630997]
[1674237382462,3.16113358,21371.0,21370.0,0.00630997]
[1674237382728,3.02513358,21371.0,21370.0,0.00630997]
[1674237383552,3.15013358,21371.0,21370.0,0.00630997]
[1674237385999,3.76463358,21371.0,21370.0,0.00630997]
[1674237386266,4.19433854,21371.0,21370.0,0.00630997]
[1674237387370,2.64151793,21371.0,21370.0,0.20063094]
[1674237387643,2.51651793,21371.0,21370.0,0.00630997]
[1674237388166,2.50651793,21371.0,21370.0,0.00630997]
[1674237388974,3.37105137,21371.0,21370.0,0.00630997]
[1674237389778,2.92608712,21371.0,21370.0,0.00630997]
[1674237391156,2.90727658,21371.0,21370.0,0.00630997]
[1674237391661,2.66207658,21371.0,21370.0,0.00630997]
[1674237392181,2.68356968,21371.0,21370.0,0.00630997]
[1674237392435,2.66207658,21371.0,21370.0,0.00630997]
[1674237392692,3.11587838,21371.0,21370.0,0.00630997]
[1674237392940,3.09226724,21371.0,21370.0,0.00630997]
[1674237393447,2.68036907,21371.0,21370.0,0.00630997]
[1674237393977,2.66207658,21371.0,21370.0,0.00630997]
[1674237394463,2.78457658,21371.0,21370.0,0.00630997]
[1674237394995,3.21428154,21371.0,21370.0,0.00630997]
[1674237395265,2.78457658,21371.0,21370.0,0.00630997]
[1674237395500,3.26717877,21371.0,21370.0,0.00630997]
[1674237396585,3.2859976,21371.0,21370.0,0.00630997]
[1674237397288,2.80339541,21371.0,21370.0,0.00630997]
[1674237398848,2.23089541,21371.0,21370.0,0.00630997]
[1674237399637,2.38089541,21371.0,21370.0,0.00630997]
[1674237399878,2.45539541,21371.0,21370.0,0.00630997]
[1674237400130,2.60539541,21371.0,21370.0,0.00630997]
[1674237400393,3.01777015,21371.0,21370.0,0.00630997]
[1674237400652,2.60539541,21371.0,21370.0,0.00630997]
[1674237401988,2.23089541,21371.0,21370.0,0.00630997]
[1674237402765,2.53089541,21371.0,21370.0,0.00630997]
[1674237403078,2.68089541,21371.0,21370.0,0.00630997]
[1674237403343,3.06605515,21371.0,21370.0,0.00630997]
[1674237403616,3.11073632,21371.0,21370.0,0.00630997]
[1674237403871,3.13287293,21371.0,21370.0,0.00630997]
[1674237404141,3.11073632,21371.0,21370.0,0.00630997]
[1674237404416,2.99673632,21371.0,21370.0,0.00630997]
[1674237404685,3.10973632,21371.0,21370.0,0.00630997]
[1674237406815,4.10973632,21371.0,21370.0,0.00630997]
[1674237407294,4.58761626,21371.0,21370.0,0.00630997]
[1674237408087,4.1579113,21371.0,21370.0,0.00630997]
[1674237408600,3.79559813,21371.0,21370.0,0.00630997]
[1674237408864,3.77275156,21371.0,21370.0,0.00630997]
[1674237409384,2.74770151,21371.0,21370.0,0.00630997]
[1674237409685,2.29770151,21371.0,21370.0,0.00620256]
[1674237410689,2.28920151,21371.0,21370.0,0.00620256]
[1674237410968,2.43920151,21371.0,21370.0,0.00620256]
[1674237411487,1.82127851,21371.0,21370.0,0.00620256]
[1674237411752,1.72365358,21371.0,21370.0,0.43571999]
[1674237412013,1.04756158,21371.0,21370.0,0.43571999]
[1674237412311,1.08356158,21371.0,21370.0,0.43571999]
[1674237412574,1.08356158,21371.0,21370.0,0.00620256]
[1674237412853,1.5758507,21371.0,21370.0,0.00620256]
[1674237413105,1.7840197,21371.0,21370.0,0.00620256]
[1674237413368,1.3160967,21371.0,21370.0,0.00620256]
[1674237414706,1.1079277,21371.0,21370.0,0.00620256]
[1674237415009,1.1079277,21371.0,21370.0,0.09257256]
[1674237415305,0.61563858,21371.0,21370.0,0.46489308]
[1674237416587,0.61563858,21371.0,21370.0,0.44367308]
[1674237416851,0.61563858,21371.0,21370.0,0.07135256]
[1674237417115,0.82380758,21371.0,21370.0,0.46791165]
[1674237417379,0.61563858,21371.0,21370.0,0.46791165]
[1674237417942,0.82380758,21371.0,21370.0,0.46791165]
[1674237418202,1.40579649,21371.0,21370.0,0.07135256]
[1674237418464,1.76396549,21371.0,21370.0,0.07135256]
[1674237418720,1.65096549,21371.0,21370.0,0.07135256]
[1674237418987,1.06304249,21371.0,21370.0,0.07135256]
[1674237419261,1.83633855,21371.0,21370.0,0.07135256]
[1674237420047,2.09813498,21371.0,21370.0,0.07135256]
[1674237420322,2.26540455,21371.0,21370.0,0.07135256]
[1674237420600,2.62264118,21371.0,21370.0,0.07135256]
[1674237420849,2.39961509,21371.0,21370.0,0.07135256]
[1674237421097,2.12083247,21371.0,21370.0,0.07135256]
[1674237422120,2.40035631,21371.0,21370.0,0.07135256]
[1674237422363,2.40035631,21371.0,21370.0,0.00620256]
[1674237422364,2.42434065,21371.0,21370.0,0.00620256]
[1674237422615,2.83635951,21371.0,21370.0,0.00620256]
[1674237422972,2.43689059,21371.0,21370.0,0.00620256]
[1674237423125,2.28867071,21371.0,21370.0,0.00620256]
[1674237423612,2.2886596,21371.0,21370.0,0.00620256]
[1674237424373,2.17685748,21371.0,21370.0,0.00620256]
[1674237424628,2.28868055,21371.0,21370.0,0.00620256]
[1674237424879,2.73915529,21371.0,21370.0,0.00620256]
[1674237425131,2.40047345,21371.0,21370.0,0.00620256]
[1674237426147,2.17685748,21371.0,21370.0,0.00620256]
[1674237426456,1.61462745,21371.0,21370.0,0.00620256]
[1674237426705,2.40047345,21371.0,21370.0,0.00620256]
[1674237426979,2.66819035,21371.0,21370.0,0.00620256]
[1674237427489,2.76296636,21371.0,21370.0,0.00620256]
[1674237427748,1.85286462,21371.0,21370.0,0.00620256]
[1674237428030,1.85286462,21371.0,21370.0,0.64773678]
[1674237428031,0.85261801,21371.0,21370.0,0.64773678]
[1674237428308,0.53263858,21371.0,21370.0,0.45341581]
[1674237428839,0.53263858,21371.0,21370.0,0.6917815]
[1674237429094,0.53263858,21371.0,21370.0,1.0090385]
[1674237429381,0.53263858,21371.0,21370.0,0.6917815]
[1674237429640,0.56863858,21371.0,21370.0,0.6917815]
[1674237430977,0.56863858,21371.0,21370.0,1.1597265]
[1674237431233,0.56863858,21371.0,21370.0,0.71051756]
[1674237432019,0.56863858,21371.0,21370.0,1.08325076]
[1674237432556,0.102,21371.0,21370.0,0.71051756]
[1674237432820,0.10189208,21371.0,21370.0,1.12200956]
[1674237433371,0.10189208,21371.0,21370.0,1.58517999]
[1674237433627,0.10189208,21371.0,21370.0,1.55267486]
[1674237433884,0.10189208,21371.0,21370.0,1.19890649]
[1674237434142,0.07189208,21371.0,21370.0,1.66685149]
[1674237434396,0.07889208,21371.0,21370.0,1.66685149]
[1674237434667,0.07189208,21371.0,21370.0,2.10788675]
[1674237434922,0.08189208,21371.0,21370.0,2.10788675]
[1674237435160,0.08189208,21371.0,21370.0,1.66685149]
[1674237436791,0.08189208,21371.0,21370.0,2.08491561]
[1674237437052,0.08189208,21371.0,21370.0,1.93491561]
[1674237437307,0.08189208,21371.0,21370.0,0.50116361]
[1674237437845,0.08189208,21371.0,21370.0,0.08309949]
[1674237438108,0.08189208,21371.0,21370.0,0.23309949]
[1674237438368,0.08189208,21371.0,21370.0,0.53084949]
[1674237438875,0.08189208,21371.0,21370.0,0.92170238]
[1674237439103,0.08189208,21371.0,21370.0,0.99879449]
[1674237439604,0.08189208,21371.0,21370.0,1.07329449]
[1674237440130,0.40280001,21373.0,21371.0,0.15]
[1674237440372,0.40280001,21373.0,21372.0,0.921235]
[1674237440886,0.43880001,21373.0,21372.0,0.921235]
[1674237441138,0.43880001,21373.0,21372.0,0.6]
[1674237441632,0.44780001,21373.0,21372.0,1.00663768]
[1674237442682,0.9250017,21373.0,21372.0,1.00663768]
[1674237442925,1.1331707,21373.0,21372.0,1.00663768]
[1674237443185,0.9250017,21373.0,21372.0,1.00663768]
[1674237443442,0.9160017,21373.0,21372.0,1.00463768]
[1674237443743,1.0030017,21373.0,21372.0,1.00463768]
[1674237443974,0.9160017,21373.0,21372.0,1.00463768]
[1674237444212,0.9430017,21373.0,21372.0,1.00463768]
[1674237444716,0.9700017,21373.0,21372.0,1.07041768]
[1674237445578,0.9160017,21373.0,21372.0,1.14471768]
[1674237445859,0.9430017,21373.0,21372.0,1.14471768]
[1674237446117,0.9160017,21373.0,21372.0,1.14471768]
[1674237446404,0.9430017,21373.0,21372.0,1.14471768]
[1674237446671,0.9160017,21373.0,21372.0,1.14471768]
[1674237446931,0.9230017,21373.0,21372.0,1.14671768]
[1674237447187,0.9160017,21373.0,21372.0,1.14471768]
[1674237447462,0.9160017,21373.0,21372.0,1.65530871]
[1674237447463,0.44580001,21373.0,21372.0,1.65530871]
[1674237447752,0.44580001,21373.0,21372.0,1.97274971]
[1674237448532,0.44580001,21373.0,21372.0,2.44265071]
[1674237448802,0.44580001,21373.0,21372.0,2.59065071]
[1674237449116,0.45480001,21373.0,21372.0,2.221823]
[1674237449900,0.45480001,21373.0,21372.0,2.63003633]
[1674237450163,0.45480001,21373.0,21372.0,2.62672061]
[1674237450444,0.43880001,21373.0,21372.0,2.62472061]
[1674237450695,0.44780001,21373.0,21372.0,2.62672061]
[1674237451493,0.44780001,21373.0,21372.0,2.55242061]
[1674237451789,0.44780001,21373.0,21372.0,2.147523]
[1674237452342,0.44780001,21373.0,21372.0,2.48728212]
[1674237452596,0.44780001,21373.0,21372.0,2.53595004]
[1674237454210,0.44780001,21373.0,21372.0,2.31145004]
[1674237454709,0.44780001,21373.0,21372.0,0.987221]
[1674237454710,0.49318974,21373.0,21372.0,0.987221]
[1674237454967,0.94954072,21373.0,21372.0,0.66778]
[1674237455228,1.15770972,21373.0,21372.0,0.66778]
[1674237456024,1.92558972,21373.0,21372.0,0.6676966]
[1674237456288,1.92558972,21373.0,21372.0,0.0676966]
[1674237456289,2.46776972,21373.0,21372.0,0.0676966]
[1674237456821,1.69988972,21373.0,21372.0,0.0676966]
[1674237457071,1.23200972,21373.0,21372.0,0.0676966]
[1674237457328,1.23200972,21373.0,21372.0,0.6676966]
[1674237457329,1.69988972,21373.0,21372.0,0.6676966]
[1674237457591,1.69988972,21373.0,21372.0,0.6656966]
[1674237457830,2.24776972,21373.0,21372.0,0.6656966]
[1674237458386,2.15876972,21373.0,21372.0,0.6656966]
[1674237458887,2.24776972,21373.0,21372.0,0.6656966]
[1674237459713,1.77988972,21373.0,21372.0,0.6656966]
[1674237460222,2.54776972,21373.0,21372.0,0.6656966]
[1674237460473,2.54776972,21373.0,21372.0,0.0656966]
[1674237461828,2.24776972,21373.0,21371.0,1.08864592]
[1674237462097,0.47720169,21372.0,21371.0,1.08864592]
[1674237462595,0.68537069,21372.0,21371.0,1.08864592]
[1674237463373,0.72137069,21372.0,21371.0,1.08864592]
[1674237463918,0.80937069,21372.0,21371.0,1.08864592]
[1674237465278,1.76286799,21372.0,21371.0,0.663]
[1674237465801,0.82706599,21372.0,21371.0,0.663]
[1674237466056,1.29496699,21372.0,21371.0,0.663]
[1674237467903,1.56680453,21372.0,21371.0,0.063]
[1674237468161,2.05367269,21372.0,21371.0,0.063]
[1674237468441,2.22382257,21372.0,21371.0,0.063]
[1674237469202,2.38797269,21372.0,21371.0,0.063]
[1674237469464,2.66723985,21372.0,21371.0,0.063]
[1674237469717,2.49952881,21372.0,21371.0,0.063]
[1674237470285,2.6882477,21372.0,21371.0,0.063]
[1674237470494,2.60404002,21372.0,21371.0,0.063]
[1674237470748,2.66923985,21372.0,21371.0,0.063]
[1674237471008,2.02043311,21372.0,21371.0,0.063]
[1674237471281,2.11143311,21372.0,21370.0,0.00620256]
[1674237471531,1.14387069,21371.0,21370.0,0.00620256]
[1674237471786,2.07971669,21371.0,21370.0,0.00620256]
[1674237472322,2.4114683,21371.0,21370.0,0.00620256]
[1674237472593,2.4834683,21371.0,21370.0,0.00620256]
[1674237473370,2.59271686,21371.0,21370.0,0.00620256]
[1674237473894,2.22253381,21371.0,21370.0,0.00620256]
[1674237474208,2.11096525,21371.0,21370.0,0.00620256]
[1674237474687,1.81096525,21371.0,21370.0,0.00620256]
[1674237474959,2.11096525,21371.0,21370.0,0.00620256]
[1674237475689,1.81096525,21371.0,21370.0,0.00620256]
[1674237476790,2.62628884,21371.0,21370.0,0.00620256]
[1674237477837,2.26096525,21371.0,21370.0,0.00620256]
[1674237478670,2.26096525,21371.0,21370.0,0.00509299]
[1674237479728,2.24171669,21371.0,21370.0,0.00509299]
[1674237479991,2.31601669,21371.0,21370.0,0.00509299]
[1674237480509,2.3397983,21371.0,21370.0,0.00509299]
[1674237480793,2.31601669,21371.0,21370.0,0.00509299]
[1674237481060,2.72678358,21371.0,21370.0,0.00509299]
[1674237481564,2.74467553,21371.0,21370.0,0.00509299]
[1674237481820,2.72678358,21371.0,21370.0,0.00509299]
[1674237482304,2.74835214,21371.0,21370.0,0.00509299]
[1674237482307,3.30727514,21371.0,21370.0,0.00509299]
[1674237482563,4.38847368,21371.0,21370.0,0.00509299]
[1674237482824,4.01794984,21371.0,21369.0,0.00421543]
[1674237483084,1.94155714,21370.0,21369.0,0.00421543]
[1674237483338,2.68012923,21370.0,21369.0,0.00421543]
[1674237483596,2.17824874,21370.0,21369.0,0.00421543]
[1674237483855,2.25024874,21370.0,21369.0,0.00421543]
[1674237485220,2.36178959,21370.0,21369.0,0.00421543]
[1674237485487,2.33601473,21370.0,21369.0,0.00421543]
[1674237486243,2.42701473,21370.0,21369.0,0.00421543]
[1674237486246,1.90251473,21370.0,21369.0,0.00421543]
[1674237486498,1.40731569,21370.0,21369.0,0.41110567]
[1674237487256,0.73120169,21370.0,21369.0,0.41110567]
[1674237488025,0.54920169,21370.0,21369.0,0.41110567]
[1674237488275,0.63220169,21370.0,21369.0,0.41210567]
[1674237488592,0.54920169,21370.0,21369.0,0.41110567]
[1674237488800,0.57920169,21370.0,21369.0,0.41210567]
[1674237490605,0.78737069,21370.0,21369.0,0.41210567]
[1674237493158,0.78737069,21370.0,21369.0,0.00521543]
[1674237493408,0.102,21370.0,21369.0,0.31608543]
[1674237493688,0.102,21370.0,21369.0,1.10217743]
[1674237494175,1e-08,21370.0,21369.0,1.90567978]
[1674237494422,0.03600001,21370.0,21369.0,1.98017978]
[1674237494993,0.03600001,21370.0,21369.0,2.28017978]
[1674237495197,0.036,21370.0,21369.0,1.97917978]
[1674237495455,0.036,21370.0,21369.0,1.57071284]
[1674237495956,0.0051,21370.0,21369.0,2.01029283]
[1674237496202,0.40280001,21373.0,21370.0,0.15]
[1674237496457,0.40280001,21373.0,21372.0,0.824]
[1674237496744,0.40280001,21373.0,21372.0,2.86217173]
[1674237496988,0.20227757,21373.0,21372.0,2.97385587]
[1674237497252,0.01278036,21380.0,21373.0,0.68463]
[1674237497577,0.48998205,21380.0,21379.0,0.6]
[1674237497776,0.01278036,21380.0,21379.0,1.56914097]
[1674237498035,0.01278036,21380.0,21379.0,1.37482]
[1674237498283,0.01278036,21380.0,21379.0,1.067748]
[1674237499099,0.01278036,21380.0,21379.0,1.370652]
[1674237499619,0.01278036,21380.0,21379.0,1.79502478]
[1674237499917,0.01278036,21380.0,21379.0,1.58612078]
[1674237500490,0.57736205,21380.0,21379.0,1.11837278]
[1674237500746,0.48998205,21380.0,21379.0,1.11837278]
[1674237501795,0.48998205,21380.0,21379.0,1.02437278]
[1674237502054,0.69815105,21380.0,21379.0,0.6]
[1674237502315,0.48998205,21380.0,21379.0,0.6]
[1674237502575,0.48998205,21380.0,21379.0,0.694]
[1674237503082,0.917867,21380.0,21379.0,0.694]
[1674237503348,0.709698,21380.0,21379.0,0.694]
[1674237503877,0.917867,21380.0,21379.0,0.694]
[1674237504644,1.385593,21380.0,21379.0,0.694]
[1674237504907,2.153319,21380.0,21379.0,0.694]
[1674237505469,2.15790305,21380.0,21379.0,0.094]
[1674237505683,2.16640305,21380.0,21376.0,0.6]
[1674237505947,0.85960169,21379.0,21376.0,0.6]
[1674237506226,2.23868069,21378.0,21376.0,0.6]
[1674237506498,0.47720169,21377.0,21376.0,0.6]
[1674237506798,1.62095469,21377.0,21376.0,0.6]
[1674237507067,1.92095469,21377.0,21376.0,0.6]
[1674237507323,1.60316269,21377.0,21376.0,0.6]
[1674237507574,2.02567516,21377.0,21373.0,1.13463]
[1674237507820,2.02567516,21377.0,21376.0,0.007]
[1674237507821,1.2698942,21377.0,21376.0,0.007]
[1674237508309,2.10217516,21377.0,21376.0,0.007]
[1674237508310,2.2875901,21377.0,21376.0,0.007]
[1674237508562,1.94287763,21377.0,21373.0,1.13463]
[1674237508813,1.18870694,21377.0,21376.0,0.6]
[1674237509123,1.46617594,21377.0,21376.0,0.6]
[1674237509383,1.94837763,21377.0,21376.0,0.608]
[1674237509611,1.94837763,21377.0,21376.0,0.6]
[1674237509877,1.95337763,21377.0,21376.0,0.6]
[1674237510193,1.75796269,21377.0,21376.0,0.6]
[1674237510441,2.08928575,21377.0,21376.0,0.007]
[1674237510733,2.13467548,21377.0,21376.0,0.007]
[1674237510984,2.16378575,21377.0,21376.0,0.007]
[1674237511503,1.99664846,21377.0,21376.0,0.007]
[1674237511755,2.01834928,21377.0,21373.0,0.53463]
[1674237512033,1.23456832,21377.0,21373.0,0.53463]
[1674237512284,0.0745,21374.0,21373.0,0.53463]
[1674237512535,1.22217013,21374.0,21373.0,0.53463]
[1674237513044,1.69937182,21374.0,21373.0,0.53463]
[1674237513341,1.43537182,21374.0,21373.0,0.53463]
[1674237513556,1.19522869,21374.0,21373.0,0.54063]
[1674237515179,0.72737069,21374.0,21373.0,0.54063]
[1674237515714,1.19468969,21374.0,21373.0,0.54063]
[1674237516812,0.72683169,21374.0,21373.0,0.54063]
[1674237517083,0.72683169,21374.0,21373.0,0.88948925]
[1674237517575,0.51920169,21374.0,21373.0,0.88948925]
[1674237518349,0.98705969,21374.0,21373.0,0.88948925]
[1674237518615,1.19470969,21374.0,21373.0,0.54063]
[1674237518874,0.95100696,21374.0,21373.0,0.54063]
[1674237522795,1.32550696,21374.0,21373.0,0.54063]
[1674237523039,1.47550696,21374.0,21373.0,0.54063]
[1674237523293,1.73607706,21374.0,21373.0,0.54063]
[1674237523551,2.21243506,21374.0,21373.0,0.54063]
[1674237523840,2.41972296,21374.0,21373.0,0.54063]
[1674237525891,2.40542702,21374.0,21373.0,0.54063]
[1674237527905,1.95542702,21374.0,21373.0,0.54063]
[1674237529457,2.25542702,21374.0,21373.0,0.54063]
[1674237530252,2.35542702,21374.0,21373.0,0.54063]
[1674237531249,2.25542702,21374.0,21373.0,0.54063]
[1674237531771,1.88092702,21374.0,21373.0,0.54063]
[1674237532287,2.18092702,21374.0,21373.0,0.54063]
[1674237532554,2.14132637,21374.0,21373.0,0.54063]
[1674237533026,2.25286722,21374.0,21373.0,0.54063]
[1674237533285,2.29132637,21374.0,21373.0,0.54063]
[1674237534581,2.14132637,21374.0,21373.0,0.54063]
[1674237534831,2.14132637,21374.0,21373.0,0.61342]
[1674237535868,1.84132637,21374.0,21373.0,0.61342]
[1674237536120,2.14132637,21374.0,21373.0,0.61342]
[1674237536900,2.29132637,21374.0,21373.0,0.61342]
[1674237537710,2.40286722,21374.0,21373.0,0.61342]
[1674237538241,2.29132637,21374.0,21373.0,0.61342]
[1674237538503,2.40286722,21374.0,21373.0,0.61342]
[1674237538767,2.40286722,21374.0,21373.0,0.61332489]
[1674237539026,2.71348715,21374.0,21373.0,0.61332489]
[1674237539325,2.4904175,21374.0,21373.0,0.61332489]
[1674237539589,2.6022149,21374.0,21373.0,0.61332489]
[1674237540115,2.4522149,21374.0,21373.0,0.54053489]
[1674237540385,2.2849064,21374.0,21373.0,0.54053489]
[1674237540885,2.173109,21374.0,21373.0,0.54053489]
[1674237541144,2.6022149,21374.0,21373.0,0.54053489]
[1674237541663,2.4349064,21374.0,21373.0,0.54053489]
[1674237542423,2.173109,21374.0,21373.0,0.54053489]
[1674237543510,1.873109,21374.0,21373.0,0.54053489]
[1674237544590,2.173109,21374.0,21373.0,0.54053489]
[1674237545617,2.2849064,21374.0,21373.0,0.54053489]
[1674237545873,2.173109,21374.0,21373.0,0.54053489]
[1674237546412,2.2849064,21374.0,21373.0,0.54053489]
[1674237546912,2.4522149,21374.0,21373.0,0.54053489]
[1674237547251,2.28496644,21374.0,21373.0,0.54053489]
[1674237548190,1.873109,21374.0,21373.0,0.54053489]
[1674237548473,2.45227494,21374.0,21373.0,0.54053489]
[1674237549218,2.56348715,21374.0,21373.0,0.54053489]
[1674237549477,2.34099381,21374.0,21373.0,0.54053489]
[1674237549727,2.56406346,21374.0,21373.0,0.54053489]
[1674237550252,2.78056832,21374.0,21373.0,0.54053489]
[1674237550503,3.02535667,21374.0,21373.0,0.54053489]
[1674237551285,3.09576137,21374.0,21373.0,0.54053489]
[1674237551534,2.89145053,21374.0,21373.0,0.54053489]
[1674237551770,3.29923336,21374.0,21373.0,0.54053489]
[1674237552041,3.49740834,21374.0,21373.0,0.54053489]
[1674237552337,3.74538317,21374.0,21373.0,0.54053489]
[1674237552543,4.43135567,21374.0,21373.0,0.49471838]
[1674237552802,3.78926682,21374.0,21373.0,0.49471838]
[1674237553053,4.16429347,21374.0,21373.0,0.49471838]
[1674237553313,4.16429347,21374.0,21373.0,0.48871838]
[1674237553314,3.78326682,21374.0,21373.0,0.48871838]
[1674237553636,4.93007543,21374.0,21373.0,0.48971838]
[1674237553831,4.93006553,21374.0,21373.0,0.48971838]
[1674237554359,4.64166682,21374.0,21373.0,0.39271418]
[1674237554910,4.55566682,21374.0,21373.0,0.39171418]
[1674237555167,4.55566682,21374.0,21373.0,0.39271418]
[1674237555168,5.01669347,21374.0,21373.0,0.39271418]
[1674237556448,4.22275652,21374.0,21373.0,0.39271418]
[1674237556450,4.63684798,21374.0,21373.0,0.39271418]
[1674237556704,4.07983522,21374.0,21373.0,0.39271418]
[1674237557228,4.2962455,21374.0,21373.0,0.39271418]
[1674237557482,4.3264042,21374.0,21373.0,0.39271418]
[1674237557763,3.91231274,21374.0,21373.0,0.07317218]
[1674237558039,0.47720169,21370.0,21369.0,0.60421543]
[1674237558294,2.53312981,21370.0,21369.0,0.60421543]
[1674237558551,3.11498237,21370.0,21369.0,0.60421543]
[1674237558837,3.26498237,21370.0,21369.0,0.60421543]
[1674237559099,3.52742193,21370.0,21369.0,0.60421543]
[1674237559349,3.18165096,21370.0,21369.0,0.44608477]
[1674237559622,3.59092375,21370.0,21369.0,0.44608477]
[1674237559872,3.18165096,21370.0,21369.0,0.44608477]
[1674237560433,3.6257275,21370.0,21369.0,0.44608477]
[1674237560434,3.58569665,21370.0,21369.0,0.44608477]
[1674237560690,3.64969665,21370.0,21369.0,0.44708477]
[1674237561201,3.42590618,21370.0,21369.0,0.44708477]
[1674237561448,3.83757748,21370.0,21369.0,0.44708477]
[1674237561702,3.55782324,21370.0,21369.0,0.44708477]
[1674237561948,3.42589348,21370.0,21369.0,0.44708477]
[1674237562209,3.14615194,21370.0,21369.0,0.44708477]
[1674237562479,3.05852295,21370.0,21369.0,0.44708477]
[1674237562771,3.08537825,21370.0,21369.0,0.44708477]
[1674237563245,2.86164155,21370.0,21369.0,0.44708477]
[1674237563497,2.86164155,21370.0,21369.0,0.001]
[1674237563759,3.32242341,21370.0,21369.0,0.001]
[1674237564554,3.62242341,21370.0,21369.0,0.001]
[1674237564800,4.04828547,21370.0,21369.0,0.001]
[1674237565061,3.34269085,21370.0,21369.0,0.001]
[1674237565323,3.81023393,21370.0,21369.0,0.001]
[1674237565582,3.62473106,21370.0,21369.0,0.001]
[1674237566351,3.84382889,21370.0,21369.0,0.001]
[1674237567391,4.06451243,21370.0,21369.0,0.001]
[1674237567668,3.65769929,21370.0,21369.0,0.001]
[1674237568159,3.82557672,21370.0,21369.0,0.001]
[1674237568162,2.84039486,21370.0,21369.0,0.001]
[1674237568422,2.59867024,21370.0,21369.0,0.001]
[1674237568677,2.76654767,21370.0,21369.0,0.001]
[1674237569224,2.87844522,21370.0,21369.0,0.001]
[1674237569456,2.87844469,21370.0,21369.0,0.001]
[1674237569706,2.91654767,21370.0,21369.0,0.001]
[1674237569960,3.02845747,21370.0,21369.0,0.001]
[1674237570725,3.17845747,21370.0,21369.0,0.001]
[1674237571812,3.02845747,21370.0,21369.0,0.001]
[1674237572079,2.74867024,21370.0,21369.0,0.001]
[1674237572598,2.89867024,21370.0,21369.0,0.001]
[1674237572851,3.01058004,21370.0,21369.0,0.001]
[1674237573661,3.17845747,21370.0,21369.0,0.001]
[1674237574173,3.17845747,21370.0,21369.0,0.07761]
[1674237574461,3.02845747,21370.0,21369.0,0.07761]
[1674237574736,2.91654767,21370.0,21369.0,0.07761]
[1674237574990,3.14039486,21370.0,21369.0,0.07761]
[1674237575253,3.02840084,21370.0,21369.0,0.07761]
[1674237575517,3.25219986,21370.0,21369.0,0.07761]
[1674237576081,3.43550121,21370.0,21369.0,0.07761]
[1674237576331,3.12251743,21370.0,21369.0,0.07761]
[1674237576887,3.17840854,21370.0,21369.0,0.07761]
[1674237577677,3.29036041,21370.0,21369.0,0.07761]
[1674237578188,3.305839,21370.0,21369.0,0.07761]
[1674237578747,3.15965546,21370.0,21369.0,0.07761]
[1674237579005,3.81300232,21370.0,21369.0,0.07761]
[1674237579262,3.22906909,21370.0,21369.0,0.06257094]
[1674237579554,3.4528213,21370.0,21368.0,0.44608477]
[1674237580069,0.89758605,21369.0,21368.0,0.44608477]
[1674237580321,2.19117005,21369.0,21368.0,0.44608477]
[1674237580587,2.48841053,21369.0,21368.0,0.44608477]
[1674237580853,2.20871639,21369.0,21368.0,0.44608477]
[1674237581108,2.24471639,21369.0,21368.0,0.44608477]
[1674237581361,2.28071639,21369.0,21368.0,0.44608477]
[1674237581638,2.44854298,21369.0,21368.0,0.44608477]
[1674237581893,2.28371639,21369.0,21368.0,0.44908477]
[1674237582927,1.98371639,21369.0,21368.0,0.44908477]
[1674237583188,1.87181515,21369.0,21368.0,0.44908477]
[1674237584021,1.95071639,21369.0,21368.0,0.44908477]
[1674237584552,1.95071639,21369.0,21368.0,0.003]
[1674237584809,1.95071639,21369.0,21368.0,0.4841374]
[1674237585363,2.25071639,21369.0,21368.0,0.4841374]
[1674237585614,2.25071639,21369.0,21368.0,0.44908477]
[1674237586906,1.83881515,21369.0,21368.0,0.29908477]
[1674237587192,2.30678215,21369.0,21368.0,0.29908477]
[1674237587460,2.60678215,21369.0,21368.0,0.29908477]
[1674237587748,2.30678215,21369.0,21368.0,0.29908477]
[1674237588270,3.12090932,21369.0,21368.0,0.29908477]
[1674237588785,2.77460874,21369.0,21368.0,0.29908477]
[1674237589812,2.88660714,21369.0,21368.0,0.29908477]
[1674237590380,2.60678215,21369.0,21368.0,0.29908477]
[1674237590596,2.58660714,21369.0,21368.0,0.29908477]
[1674237590843,2.88660714,21369.0,21368.0,0.29908477]
[1674237591096,2.88666801,21369.0,21368.0,0.29908477]
[1674237591356,2.71884142,21369.0,21368.0,0.29908477]
[1674237592143,2.88666801,21369.0,21368.0,0.29908477]
[1674237592665,2.99837753,21369.0,21368.0,0.29908477]
[1674237592967,3.23658091,21369.0,21368.0,0.29908477]
[1674237593233,3.01281212,21369.0,21368.0,0.29908477]
[1674237593746,3.23704554,21369.0,21368.0,0.29908477]
[1674237594000,3.6545933,21369.0,21368.0,0.29908477]
[1674237594313,3.37492001,21369.0,21368.0,0.29908477]
[1674237594567,3.15069129,21369.0,21368.0,0.29908477]
[1674237594817,3.43111265,21369.0,21368.0,0.29908477]
[1674237595080,3.26360693,21369.0,21368.0,0.29908477]
[1674237595345,3.17459998,21369.0,21368.0,0.29908477]
[1674237595817,3.13316183,21369.0,21368.0,0.29908477]
[1674237596086,3.60112883,21369.0,21368.0,0.29908477]
[1674237596340,3.93683392,21369.0,21368.0,0.29908477]
[1674237596601,3.51928616,21369.0,21368.0,0.29908477]
[1674237599230,3.51384416,21369.0,21368.0,0.24274344]
[1674237599701,3.73403794,21369.0,21368.0,0.24274344]
[1674237599961,3.55681598,21369.0,21368.0,0.24274344]
[1674237600490,4.44730741,21369.0,21368.0,0.24274344]
[1674237600762,5.06925525,21369.0,21368.0,0.24274344]
[1674237600992,3.55681598,21369.0,21368.0,0.24274344]
[1674237601248,3.82216748,21369.0,21368.0,0.24274344]
[1674237601502,3.32703907,21369.0,21368.0,0.24274344]
[1674237601764,3.54239992,21369.0,21368.0,0.24274344]
[1674237602086,2.4780056,21369.0,21368.0,0.24274344]
[1674237602298,0.70630215,21369.0,21368.0,0.90505341]